[Event "Commonwealth Open 2019"]
[Site "Delhi"]
[Date "2019.07.02"]
[Round "4.15"]
[White "Priyanka, K."]
[Black "Thipsay, Praveen M"]
[Result "0-1"]
[ECO "C77"]
[WhiteElo "2053"]
[BlackElo "2405"]
[Annotator "ChessBase"]
[PlyCount "100"]
[EventDate "2019.06.30"]
[EventType "swiss"]
[EventCountry "IND"]
[SourceTitle "playchess.com"]
[Source "ChessBase"]
[SourceQuality "1"]
[TimeControl "5400+30"]

1. e4 {[%emt 0:00:08]} e5 {[%emt 0:00:00]} 2. Nf3 {[%emt 0:00:15]} Nc6 {[%emt 0:00:00]} 3. Bb5 {[%emt 0:00:07]} a6 {[%emt 0:00:00]} 4. Ba4 {[%emt 0:00:04]} Nf6 {[%emt 0:00:07]} 5. d3 {[%emt 0:00:47]} b5 {[%emt 0:01:10]} 6. Bb3 {[%emt 0:00:14]} Be7 {[%emt 0:00:08]} 7. Nc3 {[%emt 0:00:45]} d6 {[%emt 0:04:52]} 8. a3 O-O {[%emt 0:10:40]} 9. Nd5 {[%emt 0:03:20]} Be6 {[%emt 0:09:12]} 10. c3 {[%emt 0:11:14]} Qd7 {[%emt 0:06:19]} 11. Bg5 {[%emt 0:08:44]} Kh8 {[%emt 0:23:48]} 12. Bxf6 {[%emt 0:08:51]} Bxf6 {[%emt 0:00:08]} 13. Nxf6 {[%emt 0:04:17]} gxf6 {[%emt 0:00:07]} 14. Nh4 {[%emt 0:01:34]} Ne7 {[%emt 0:11:28]} 15. Bc2 {[%emt 0:04:49]} f5 {[%emt 0:07:20]} 16. exf5 {[%emt 0:04:20]} Nxf5 {[%emt 0:00:09]} 17. Nxf5 {[%emt 0:00:51]} Bxf5 {[%emt 0:00:08]} 18. Qf3 {[%emt 0:00:44]} f6 {[%emt 0:02:43]} 19. h3 {[%emt 0:01:47]} d5 {[%emt 0:07:23]} 20. g4 {[%emt 0:04:15]} Bg6 {[%emt 0:02:18]} 21. h4 {[%emt 0:06:51]} f5 {[%emt 0:01:16]} 22. gxf5 {[%emt 0:03:03]} Rxf5 {[%emt 0:00:36]} 23. Qh3 {[%emt 0:05:51]} d4 {[%emt 0:01:36]} 24. Bd1 {[%emt 0:03:51]} dxc3 {[%emt 0:01:56]} 25. bxc3 {[%emt 0:00:25]} Qc6 {[%emt 0:01:27]} 26. Rc1 {[%emt 0:00:27]} Rf4 {[%emt 0:01:24]} 27. Rg1 {[%emt 0:01:33]} Rd8 {[%emt 0:00:56]} 28. Be2 {[%emt 0:05:52]} Qc5 {[%emt 0:01:40]} 29. Qg3 {[%emt 0:00:57]} Qxa3 {[%emt 0:00:20]} 30. Qe3 {[%emt 0:00:50]} Qd6 {[%emt 0:00:27]} 31. h5 {[%emt 0:00:55]} Bf7 {[%emt 0:00:21]} 32. Rg5 {[%emt 0:01:11]} Re8 {[%emt 0:00:17]} 33. Ra1 {[%emt 0:14:12]} Qf6 {[%emt 0:00:31]} 34. Rg3 {[%emt 0:00:13]} e4 {[%emt 0:02:44]} 35. Rxa6 {[%emt 0:02:58]} Qxc3+ {[%emt 0:00:08]} 36. Kf1 {[%emt 0:00:27]} Rf6 {[%emt 0:02:31]} 37. Rxf6 {[%emt 0:00:20]} Qxf6 {[%emt 0:00:03]} 38. dxe4 {[%emt 0:00:11]} c6 {[%emt 0:00:52]} 39. f4 {[%emt 0:00:52]} Qa1+ {[%emt 0:00:15]} 40. Kf2 {[%emt 0:00:10]} Bd5 {[%emt 0:00:46]} 41. e5 {[%emt 0:00:34]} Qh1 {[%emt 0:00:28]} 42. e6 {[%emt 0:00:32]} Qa1 {[%emt 0:00:25]} 43. f5 {[%emt 0:00:29]} Qf6 {[%emt 0:00:13]} 44. Qg5 {[%emt 0:00:48]} Qd4+ {[%emt 0:00:57]} 45. Qe3 {[%emt 0:00:23]} Qf6 {[%emt 0:00:03]} 46. Qg5 {[%emt 0:00:15]} Qd4+ {[%emt 0:00:37]} 47. Re3 {[%emt 0:00:12]} Rg8 {[%emt 0:00:23]} 48. Qh6 {[%emt 0:01:56]} Qh4+ {[%emt 0:00:19]} 49. Kf1 {[%emt 0:00:10]} Qh1+ {[%emt 0:00:03]} 50. Kf2 {[%emt 0:00:04]} Qg1# {[%emt 0:00:07] Rg3} 0-1

[Event "Commonwealth Open 2019"]
[Site "Delhi"]
[Date "2019.07.02"]
[Round "4.16"]
[White "Sri Sai Baswanth P"]
[Black "Nitin, S.."]
[Result "0-1"]
[ECO "A43"]
[WhiteElo "2045"]
[BlackElo "2398"]
[Annotator "NA"]
[PlyCount "80"]
[EventDate "2019.06.30"]
[EventType "swiss"]
[EventCountry "IND"]
[SourceTitle "playchess.com"]
[Source "ChessBase"]
[SourceQuality "1"]
[TimeControl "5400+30"]

1. d4 {[%emt 0:03:36]} c5 {[%emt 0:00:06]} 2. d5 {[%emt 0:00:30]} d6 {[%emt 0:00:10]} 3. e4 {[%emt 0:00:15]} Nf6 {[%emt 0:00:09]} 4. Nc3 {[%emt 0:00:08]} g6 {[%emt 0:00:09]} 5. Nf3 {[%emt 0:00:07]} Bg7 {[%emt 0:00:07]} 6. Be2 {[%emt 0:00:21]} O-O {[%emt 0:00:10]} 7. O-O {[%emt 0:00:06]} e6 {[%emt 0:02:41]} 8. a4 {[%emt 0:08:45]} exd5 {[%emt 0:00:37]} 9. exd5 {[%emt 0:00:07]} Na6 {[%emt 0:00:18]} 10. h3 {[%emt 0:04:15]} Nb4 {[%emt 0:01:19]} 11. Bg5 {[%emt 0:01:07]} Bf5 {[%emt 0:02:42]} 12. Rc1 {[%emt 0:03:10]} h6 {[%emt 0:05:14]} 13. Bf4 {[%emt 0:03:02]} g5 {[%emt 0:09:17]} 14. Bh2 {[%emt 0:01:18]} a6 {[%emt 0:00:18]} 15. Nd2 {[%emt 0:07:39]} Nfxd5 {[%emt 0:05:08]} 16. Nxd5 {[%emt 0:00:22]} Nxd5 {[%emt 0:00:12]} 17. Nc4 {[%emt 0:00:45]} Nf4 {[%emt 0:02:03]} 18. Bxf4 {[%emt 0:02:07]} gxf4 {[%emt 0:00:08]} 19. Nxd6 {[%emt 0:01:13]} Bg6 {[%emt 0:00:18]} 20. Bf3 {[%emt 0:02:24]} Qc7 {[%emt 0:05:12]} 21. Nxb7 {[%emt 0:07:26]} Bxb2 {[%emt 0:03:11]} 22. Rb1 {[%emt 0:04:18]} Bd4 {[%emt 0:02:09]} 23. Qd2 {[%emt 0:06:16]} Qe5 {[%emt 0:02:15]} 24. Rfe1 {[%emt 0:04:10]} Qf6 {[%emt 0:00:16]} 25. Re2 {[%emt 0:09:55]} Rae8 {[%emt 0:06:44]} 26. a5 {[%emt 0:05:26]} Bc3 {[%emt 0:03:33]} 27. Qd5 {[%emt 0:02:20]} Rxe2 {[%emt 0:04:18]} 28. Bxe2 {[%emt 0:00:05]} Re8 {[%emt 0:02:02]} 29. Rb6 {[%emt 0:05:08]} Qg5 {[%emt 0:05:59]} 30. Qxg5 {[%emt 0:14:18]} hxg5 {[%emt 0:00:11]} 31. Kf1 {[%emt 0:03:07]} Bxc2 {[%emt 0:02:06]} 32. g3 {[%emt 0:00:32]} fxg3 {[%emt 0:13:59]} 33. fxg3 {[%emt 0:00:05]} Re3 {[%emt 0:01:36]} 34. Nxc5 {[%emt 0:01:53]} Rxg3 {[%emt 0:01:25]} 35. Nxa6 {[%emt 0:00:29]} Bxa5 {[%emt 0:01:28]} 36. Rb5 {[%emt 0:00:27]} Bd2 {[%emt 0:00:30]} 37. Rb8+ {[%emt 0:00:38]} Kg7 {[%emt 0:00:12]} 38. Nc7 {[%emt 0:00:23]} Be3 {[%emt 0:02:15]} 39. Bc4 {[%emt 0:00:18]} Bd1 {[%emt 0:03:32]} 40. Rb7 {[%emt 0:00:27]} Rg1# {[%emt 0:00:07]} 0-1

[Event "Commonwealth Open 2019"]
[Site "Delhi"]
[Date "2019.07.02"]
[Round "4.17"]
[White "Kulkarni, Bhakti"]
[Black "Panesar Vedant"]
[Result "1-0"]
[ECO "D71"]
[WhiteElo "2380"]
[BlackElo "2092"]
[Annotator "NA"]
[PlyCount "66"]
[EventDate "2019.06.30"]
[EventType "swiss"]
[EventCountry "IND"]
[SourceTitle "playchess.com"]
[Source "ChessBase"]
[SourceQuality "1"]
[TimeControl "5400+30"]

1. d4 {[%emt 0:00:01]} Nf6 {[%emt 0:02:55]} 2. c4 {[%emt 0:00:24]} g6 {[%emt 0:00:23]} 3. g3 {[%emt 0:02:35]} Bg7 {[%emt 0:00:56]} 4. Bg2 {[%emt 0:00:02]} O-O {[%emt 0:00:30]} 5. Nf3 {[%emt 0:00:07]} c5 {[%emt 0:01:12]} 6. d5 {[%emt 0:01:49]} b5 {[%emt 0:00:27]} 7. O-O {[%emt 0:01:38]} d6 {[%emt 0:00:26]} 8. cxb5 {[%emt 0:06:20]} a6 {[%emt 0:00:11]} 9. b6 {[%emt 0:00:17]} Nbd7 {[%emt 0:01:08]} 10. Nc3 {[%emt 0:00:58]} Nxb6 {[%emt 0:00:07]} 11. Re1 {[%emt 0:01:44]} a5 {[%emt 0:07:30]} 12. h3 {[%emt 0:01:48]} Ba6 {[%emt 0:03:16]} 13. e4 {[%emt 0:00:57]} Nfd7 {[%emt 0:00:21]} 14. Qc2 {[%emt 0:09:37]} Rb8 {[%emt 0:01:01]} 15. Bf1 {[%emt 0:08:43]} Bxf1 {[%emt 0:05:37]} 16. Rxf1 {[%emt 0:04:54]} Qc7 {[%emt 0:11:56]} 17. Bg5 {[%emt 0:10:33]} Nc4 {[%emt 0:07:30]} 18. b3 {[%emt 0:02:10]} Na3 {[%emt 0:01:05]} 19. Qd2 {[%emt 0:02:18]} c4 {[%emt 0:02:35]} 20. Rac1 {[%emt 0:02:53]} Nc5 {[%emt 0:00:44]} 21. bxc4 {[%emt 0:01:21]} Nxc4 {[%emt 0:01:05]} 22. Qe2 {[%emt 0:00:18]} Rb4 {[%emt 0:01:34]} 23. Nb5 {[%emt 0:12:38]} Rxb5 {[%emt 0:01:05]} 24. Rxc4 {[%emt 0:00:05]} Rb2 {[%emt 0:00:24]} 25. Qe3 {[%emt 0:04:20]} Rxa2 {[%emt 0:02:17]} 26. Bh6 {[%emt 0:01:51]} Ra4 {[%emt 0:04:09]} 27. Rxa4 {[%emt 0:00:19]} Nxa4 {[%emt 0:00:02]} 28. Bxg7 {[%emt 0:00:09]} Kxg7 {[%emt 0:01:32]} 29. Qd4+ {[%emt 0:00:03]} Kg8 {[%emt 0:00:46]} 30. Qxa4 {[%emt 0:02:33]} e6 {[%emt 0:00:30]} 31. Nd4 {[%emt 0:00:09]} Qc8 {[%emt 0:01:57]} 32. Qxa5 {[%emt 0:00:37]} e5 {[%emt 0:00:02]} 33. Qc5 {[%emt 0:00:17]} Kh8 {[%emt 0:00:02]} 1-0

[Event "Commonwealth Open 2019"]
[Site "Delhi"]
[Date "2019.07.02"]
[Round "4.18"]
[White "Navalgund, Niranjan"]
[Black "Bommini, Mounika Akshaya"]
[Result "1-0"]
[ECO "A61"]
[WhiteElo "2326"]
[BlackElo "2063"]
[Annotator "NA"]
[PlyCount "87"]
[EventDate "2019.06.30"]
[EventType "swiss"]
[EventCountry "IND"]
[SourceTitle "playchess.com"]
[Source "ChessBase"]
[SourceQuality "1"]
[TimeControl "5400+30"]

1. d4 {[%emt 0:00:00]} Nf6 {[%emt 0:00:00]} 2. c4 {[%emt 0:00:10]} c5 {[%emt 0:00:02]} 3. d5 {[%emt 0:03:14]} e6 {[%emt 0:00:16]} 4. Nc3 {[%emt 0:00:41]} exd5 {[%emt 0:00:22]} 5. cxd5 {[%emt 0:00:03]} d6 {[%emt 0:00:19]} 6. Nf3 {[%emt 0:00:58]} g6 {[%emt 0:00:23]} 7. Bf4 {[%emt 0:00:05]} a6 {[%emt 0:01:08]} 8. a4 {[%emt 0:00:07]} Bg7 {[%emt 0:00:40]} 9. h3 {[%emt 0:00:18]} O-O {[%emt 0:00:16]} 10. e3 {[%emt 0:00:02]} Ne8 {[%emt 0:04:11]} 11. Be2 {[%emt 0:02:09]} Nd7 {[%emt 0:00:43]} 12. O-O {[%emt 0:00:50]} Ne5 {[%emt 0:04:35]} 13. Nd2 {[%emt 0:01:21]} b6 {[%emt 0:05:24]} 14. Bh2 {[%emt 0:07:10]} f5 {[%emt 0:03:06]} 15. Ra3 {[%emt 0:02:31]} Rb8 {[%emt 0:09:56]} 16. Rb3 {[%emt 0:15:14]} Nc7 {[%emt 0:16:05]} 17. f4 {[%emt 0:09:23]} Nd7 {[%emt 0:03:02]} 18. e4 {[%emt 0:02:59]} fxe4 {[%emt 0:12:07]} 19. Ndxe4 {[%emt 0:00:32]} Nf6 {[%emt 0:01:14]} 20. f5 {[%emt 0:13:54]} Nxe4 {[%emt 0:11:27]} 21. Nxe4 {[%emt 0:00:05]} Bxf5 {[%emt 0:02:18]} 22. Nxd6 {[%emt 0:00:59]} Bd7 {[%emt 0:02:11]} 23. Rxf8+ {[%emt 0:06:09]} Bxf8 {[%emt 0:01:30]} 24. Ne4 {[%emt 0:01:19]} Bg7 {[%emt 0:08:57]} 25. d6 {[%emt 0:28:57]} Ne6 {[%emt 0:01:03]} 26. Qd5 {[%emt 0:00:10]} Kh8 {[%emt 0:01:36]} 27. Be5 {[%emt 0:00:16]} Qg8 {[%emt 0:05:54]} 28. Nf6 {[%emt 0:01:16]} Bxf6 {[%emt 0:01:15]} 29. Bxf6+ {[%emt 0:00:02]} Ng7 {[%emt 0:00:01]} 30. Qxg8+ {[%emt 0:01:10]} Kxg8 {[%emt 0:01:01]} 31. Bxa6 {[%emt 0:01:51]} Nf5 {[%emt 0:01:12]} 32. Bc4+ {[%emt 0:00:44]} Kf8 {[%emt 0:00:11]} 33. Rd3 {[%emt 0:00:07]} Nd4 {[%emt 0:03:20]} 34. Bxd4 {[%emt 0:00:24]} cxd4 {[%emt 0:00:07]} 35. b3 {[%emt 0:00:35]} b5 {[%emt 0:00:31]} 36. axb5 {[%emt 0:00:12]} Bxb5 {[%emt 0:00:07]} 37. Rxd4 {[%emt 0:00:12]} Bxc4 {[%emt 0:00:40]} 38. bxc4 {[%emt 0:00:02]} Ke8 {[%emt 0:00:07]} 39. d7+ {[%emt 0:01:34]} Kd8 {[%emt 0:00:07]} 40. c5 {[%emt 0:00:07]} Kc7 {[%emt 0:00:30]} 41. c6 {[%emt 0:00:32]} Rd8 {[%emt 0:00:15]} 42. Rc4 {[%emt 0:00:07]} Rf8 {[%emt 0:00:23]} 43. Kh2 {[%emt 0:00:22]} h6 {[%emt 0:00:14]} 44. Re4 {[%emt 0:00:47]} 1-0

[Event "Commonwealth Open 2019"]
[Site "Delhi"]
[Date "2019.07.02"]
[Round "4.19"]
[White "Sa, Kannan"]
[Black "Sangma, Rahul"]
[Result "1/2-1/2"]
[ECO "A46"]
[WhiteElo "1947"]
[BlackElo "2298"]
[Annotator "NA"]
[PlyCount "38"]
[EventDate "2019.06.30"]
[EventType "swiss"]
[EventCountry "IND"]
[SourceTitle "playchess.com"]
[Source "ChessBase"]
[SourceQuality "1"]
[TimeControl "5400+30"]

1. d4 {[%emt 0:07:03]} Nf6 {[%emt 0:00:00]} 2. Nf3 {[%emt 0:00:03]} e6 {[%emt 0:00:29]} 3. e3 {[%emt 0:01:46]} b6 {[%emt 0:01:22]} 4. Nbd2 {[%emt 0:00:38]} Bb7 {[%emt 0:00:11]} 5. Bd3 {[%emt 0:00:14]} c5 {[%emt 0:01:16]} 6. c3 {[%emt 0:00:03]} d5 {[%emt 0:01:45]} 7. Ne5 {[%emt 0:00:19]} Nbd7 {[%emt 0:02:15]} 8. f4 {[%emt 0:00:28]} g6 {[%emt 0:00:16]} 9. O-O {[%emt 0:03:08]} Bg7 {[%emt 0:00:04]} 10. Qf3 {[%emt 0:01:01]} O-O {[%emt 0:01:08]} 11. b3 {[%emt 0:04:28]} Ne8 {[%emt 0:02:38]} 12. Qh3 {[%emt 0:04:23]} Nd6 {[%emt 0:00:36]} 13. Ndf3 {[%emt 0:02:01]} Ne4 {[%emt 0:01:31]} 14. Bxe4 {[%emt 0:01:53]} dxe4 {[%emt 0:00:03]} 15. Ng5 {[%emt 0:05:50]} Nf6 {[%emt 0:00:45]} 16. Ng4 {[%emt 0:12:17]} Nh5 {[%emt 0:04:21]} 17. Nf2 {[%emt 0:00:47]} Nf6 {[%emt 0:11:05]} 18. Ng4 {[%emt 0:00:47]} Nh5 {[%emt 0:10:15]} 19. Nf2 {[%emt 0:01:52]} Nf6 {[%emt 0:05:53]} 1/2-1/2

[Event "Commonwealth Open 2019"]
[Site "Delhi"]
[Date "2019.07.02"]
[Round "4.20"]
[White "Muhammed, Shuaau"]
[Black "Wagh, Suyog"]
[Result "0-1"]
[ECO "C50"]
[WhiteElo "1868"]
[BlackElo "2250"]
[Annotator "NA"]
[PlyCount "70"]
[EventDate "2019.06.30"]
[EventType "swiss"]
[EventCountry "IND"]
[SourceTitle "playchess.com"]
[Source "ChessBase"]
[SourceQuality "1"]
[TimeControl "5400+30"]

1. e4 {[%emt 0:00:00]} e5 {[%emt 0:00:26]} 2. Nf3 {[%emt 0:00:00]} Nc6 {[%emt 0:00:05]} 3. Bc4 {[%emt 0:00:00]} Bc5 {[%emt 0:00:41]} 4. d3 {[%emt 0:00:01]} Nf6 {[%emt 0:00:08]} 5. O-O {[%emt 0:00:13]} d6 {[%emt 0:01:27]} 6. c3 {[%emt 0:01:35]} O-O {[%emt 0:00:18]} 7. b4 {[%emt 0:04:09]} Bb6 {[%emt 0:00:25]} 8. h3 {[%emt 0:02:14]} Ne7 {[%emt 0:06:43]} 9. Re1 {[%emt 0:00:52]} Ng6 {[%emt 0:00:27]} 10. Nbd2 {[%emt 0:07:12]} c6 {[%emt 0:05:12]} 11. Bb3 {[%emt 0:00:49]} d5 {[%emt 0:03:54]} 12. c4 {[%emt 0:11:38]} Re8 {[%emt 0:45:05]} 13. c5 {[%emt 0:12:33]} Bc7 {[%emt 0:00:08]} 14. a3 {[%emt 0:08:23]} h6 {[%emt 0:03:59]} 15. Nf1 {[%emt 0:05:47]} Be6 {[%emt 0:01:10]} 16. Qc2 {[%emt 0:06:29]} Nh5 {[%emt 0:01:47]} 17. Bb2 {[%emt 0:06:38]} Nhf4 {[%emt 0:02:11]} 18. d4 {[%emt 0:12:01]} dxe4 {[%emt 0:01:04]} 19. Nxe5 {[%emt 0:05:41]} Bxb3 {[%emt 0:10:02]} 20. Qxb3 {[%emt 0:00:40]} Nxe5 {[%emt 0:00:36]} 21. dxe5 {[%emt 0:00:07]} Bxe5 {[%emt 0:00:21]} 22. Rxe4 {[%emt 0:01:32]} Qg5 {[%emt 0:00:10]} 23. Ng3 {[%emt 0:00:47]} Bxb2 {[%emt 0:00:11]} 24. Rxe8+ {[%emt 0:00:03]} Rxe8 {[%emt 0:00:05]} 25. Qxb2 {[%emt 0:00:41]} h5 {[%emt 0:00:02]} 26. h4 {[%emt 0:00:54]} Qd5 {[%emt 0:03:56]} 27. f3 {[%emt 0:00:50]} Re6 {[%emt 0:01:25]} 28. Ne4 {[%emt 0:04:39]} f5 {[%emt 0:02:30]} 29. Ng3 {[%emt 0:02:52]} Rg6 {[%emt 0:00:47]} 30. Qc1 {[%emt 0:00:58]} Qd4+ {[%emt 0:02:43]} 31. Kh2 {[%emt 0:00:43]} Rxg3 {[%emt 0:00:14]} 32. Ra2 {[%emt 0:00:42]} Rg6 {[%emt 0:00:47]} 33. Rd2 {[%emt 0:00:36]} Qe5 {[%emt 0:00:32]} 34. g3 {[%emt 0:00:56]} Nd5 {[%emt 0:00:53]} 35. f4 {[%emt 0:00:05]} Qe3 {[%emt 0:00:23]} 0-1

[Event "Commonwealth Open 2019"]
[Site "Delhi"]
[Date "2019.07.02"]
[Round "4.21"]
[White "Bhambure, Shantanu"]
[Black "Saypuri, Srithan"]
[Result "1-0"]
[ECO "A96"]
[WhiteElo "2248"]
[BlackElo "1816"]
[Annotator "NA"]
[PlyCount "63"]
[EventDate "2019.06.30"]
[EventType "swiss"]
[EventCountry "IND"]
[SourceTitle "playchess.com"]
[Source "ChessBase"]
[SourceQuality "1"]
[TimeControl "5400+30"]

1. d4 {[%emt 0:00:00]} f5 {[%emt 0:04:51]} 2. g3 {[%emt 0:00:00]} Nf6 {[%emt 0:00:03]} 3. Bg2 {[%emt 0:00:00]} e6 {[%emt 0:00:04]} 4. Nf3 {[%emt 0:00:00]} Be7 {[%emt 0:00:03]} 5. O-O {[%emt 0:00:00]} O-O {[%emt 0:00:07]} 6. c4 {[%emt 0:00:14]} d6 {[%emt 0:00:09]} 7. Nc3 {[%emt 0:00:19]} a5 {[%emt 0:00:05]} 8. Qc2 {[%emt 0:00:32]} Nc6 {[%emt 0:00:05]} 9. a3 {[%emt 0:00:16]} e5 {[%emt 0:00:05]} 10. d5 {[%emt 0:00:22]} Nb8 {[%emt 0:01:35]} 11. Ng5 {[%emt 0:00:08]} Na6 {[%emt 0:16:00]} 12. Ne6 {[%emt 0:00:43]} Bxe6 {[%emt 0:00:07]} 13. dxe6 {[%emt 0:00:01]} c6 {[%emt 0:00:17]} 14. Qxf5 {[%emt 0:02:52]} Nc5 {[%emt 0:02:28]} 15. Be3 {[%emt 0:06:14]} Nd5 {[%emt 0:09:13]} 16. Qxf8+ {[%emt 0:01:17]} Qxf8 {[%emt 0:06:11]} 17. cxd5 {[%emt 0:00:11]} Nb3 {[%emt 0:12:06]} 18. Rad1 {[%emt 0:02:33]} c5 {[%emt 0:01:08]} 19. f4 {[%emt 0:05:01]} exf4 {[%emt 0:03:23]} 20. Rxf4 {[%emt 0:02:24]} Qe8 {[%emt 0:04:29]} 21. Rf7 {[%emt 0:09:03]} b5 {[%emt 0:04:36]} 22. Ne4 {[%emt 0:08:29]} b4 {[%emt 0:05:01]} 23. Nxc5 {[%emt 0:21:01]} Nxc5 {[%emt 0:09:09]} 24. Bxc5 {[%emt 0:00:45]} dxc5 {[%emt 0:02:35]} 25. d6 {[%emt 0:04:20]} Qa4 {[%emt 0:01:07]} 26. Rdf1 {[%emt 0:03:24]} Bxd6 {[%emt 0:03:09]} 27. Bxa8 {[%emt 0:00:18]} bxa3 {[%emt 0:01:14]} 28. bxa3 {[%emt 0:04:36]} Qe8 {[%emt 0:09:12]} 29. Bd5 {[%emt 0:01:12]} Be7 {[%emt 0:00:07]} 30. Rb1 {[%emt 0:01:51]} c4 {[%emt 0:02:20]} 31. Rxe7 {[%emt 0:00:38]} Qxe7 {[%emt 0:00:09]} 32. Rb8+ {[%emt 0:00:04]} 1-0

[Event "Commonwealth Open 2019"]
[Site "Delhi"]
[Date "2019.07.02"]
[Round "4.22"]
[White "Oatlhotse, Providence"]
[Black "Kumar, Gaurav"]
[Result "0-1"]
[ECO "A20"]
[WhiteElo "2244"]
[BlackElo "2110"]
[Annotator "NA"]
[PlyCount "63"]
[EventDate "2019.06.30"]
[EventType "swiss"]
[EventCountry "IND"]
[SourceTitle "playchess.com"]
[Source "ChessBase"]
[SourceQuality "1"]
[TimeControl "5400+30"]

1. c4 {[%emt 0:06:22]} e5 {[%emt 0:00:00]} 2. g3 {[%emt 0:00:02]} c6 {[%emt 0:00:41]} 3. Nf3 {[%emt 0:00:03]} e4 {[%emt 0:00:21]} 4. Nd4 {[%emt 0:00:03]} d5 {[%emt 0:00:54]} 5. cxd5 {[%emt 0:00:02]} Qxd5 {[%emt 0:00:14]} 6. e3 {[%emt 0:00:03]} Nf6 {[%emt 0:02:50]} 7. Nc3 {[%emt 0:00:07]} Qe5 {[%emt 0:02:30]} 8. Bg2 {[%emt 0:00:34]} Bc5 {[%emt 0:06:34]} 9. f4 {[%emt 0:01:37]} Qe7 {[%emt 0:01:25]} 10. Nb3 {[%emt 0:04:11]} Bb6 {[%emt 0:01:45]} 11. Qc2 {[%emt 0:00:57]} Bf5 {[%emt 0:01:06]} 12. h3 {[%emt 0:00:17]} h5 {[%emt 0:05:32]} 13. Ne2 {[%emt 0:00:45]} O-O {[%emt 0:03:47]} 14. Nbd4 {[%emt 0:00:28]} Bd7 {[%emt 0:08:41]} 15. b3 {[%emt 0:05:03]} Na6 {[%emt 0:06:22]} 16. Qb1 {[%emt 0:05:58]} Nb4 {[%emt 0:05:05]} 17. Ba3 {[%emt 0:02:11]} a5 {[%emt 0:03:34]} 18. O-O {[%emt 0:06:10]} c5 {[%emt 0:00:08]} 19. Nc2 {[%emt 0:01:05]} Bb5 {[%emt 0:00:06]} 20. Re1 {[%emt 0:01:22]} Bd3 {[%emt 0:14:14]} 21. Bxb4 {[%emt 0:00:14]} axb4 {[%emt 0:00:22]} 22. Qb2 {[%emt 0:01:11]} Rfd8 {[%emt 0:01:39]} 23. Nc1 {[%emt 0:07:12]} Bb5 {[%emt 0:08:41]} 24. Rd1 {[%emt 0:02:02]} Rd7 {[%emt 0:00:11]} 25. Kh2 {[%emt 0:09:50]} Rad8 {[%emt 0:00:36]} 26. Ne1 {[%emt 0:00:19]} Nd5 {[%emt 0:00:14]} 27. Nc2 {[%emt 0:12:25]} Nc3 28. dxc3 {[%emt 0:02:22]} Rd5 29. Rd2 Rxd2 {[%emt 0:01:25]} 30. c4 {[%emt 0:00:44]} Rd1 {[%emt 0:01:07]} 31. Ne2 {[%emt 0:04:53]} Bc6 {[%emt 0:00:02]} 32. Qf6 {[%emt 0:12:59]} 0-1

[Event "Commonwealth Open 2019"]
[Site "Delhi"]
[Date "2019.07.03"]
[Round "5.1"]
[White "Laxman, R.R."]
[Black "Gupta, Abhijeet"]
[Result "1/2-1/2"]
[ECO "A49"]
[WhiteElo "2437"]
[BlackElo "2606"]
[Annotator "ChessBase"]
[PlyCount "97"]
[EventDate "2019.06.30"]
[EventType "swiss"]
[EventCountry "IND"]
[SourceTitle "playchess.com"]
[Source "ChessBase"]
[SourceQuality "1"]
[TimeControl "5400+30"]

1. Nf3 {[%emt 0:00:00]} Nf6 {[%emt 0:00:00]} 2. d4 {[%emt 0:00:36]} g6 {[%emt 0:00:00]} 3. g3 {[%emt 0:00:06]} Bg7 {[%emt 0:00:00]} 4. Bg2 {[%emt 0:00:08]} O-O {[%emt 0:00:35]} 5. O-O {[%emt 0:00:17]} d6 {[%emt 0:00:27]} 6. Re1 {[%emt 0:02:52]} Nbd7 {[%emt 0:01:09]} 7. e4 {[%emt 0:00:17]} e5 {[%emt 0:00:04]} 8. Nc3 {[%emt 0:01:27]} c6 {[%emt 0:00:41]} 9. h3 {[%emt 0:04:23]} Re8 {[%emt 0:08:32]} 10. a4 {[%emt 0:02:59]} Qc7 {[%emt 0:00:57]} 11. Be3 {[%emt 0:06:23]} b6 {[%emt 0:01:11]} 12. dxe5 {[%emt 0:01:26]} dxe5 {[%emt 0:00:23]} 13. Nd2 {[%emt 0:00:29]} Ba6 {[%emt 0:03:25]} 14. Bf1 {[%emt 0:02:25]} Bxf1 {[%emt 0:01:00]} 15. Kxf1 {[%emt 0:00:07]} a6 {[%emt 0:02:17]} 16. Kg2 {[%emt 0:01:51]} b5 {[%emt 0:01:59]} 17. Qf3 {[%emt 0:00:29]} Nf8 {[%emt 0:01:33]} 18. Nb3 {[%emt 0:04:42]} Ne6 {[%emt 0:00:28]} 19. Red1 {[%emt 0:01:07]} b4 {[%emt 0:01:29]} 20. Ne2 {[%emt 0:01:54]} c5 {[%emt 0:00:28]} 21. Nd2 {[%emt 0:04:24]} Nd4 {[%emt 0:02:09]} 22. Bxd4 {[%emt 0:01:48]} cxd4 {[%emt 0:00:27]} 23. c3 {[%emt 0:03:29]} bxc3 {[%emt 0:01:01]} 24. bxc3 {[%emt 0:00:02]} Rad8 {[%emt 0:00:27]} 25. cxd4 {[%emt 0:00:29]} exd4 {[%emt 0:00:06]} 26. Nf4 {[%emt 0:00:10]} Bh6 {[%emt 0:21:28]} 27. Nxg6 {[%emt 0:03:16]} hxg6 {[%emt 0:07:58]} 28. Qxf6 {[%emt 0:00:07]} Qc2 {[%emt 0:04:22]} 29. Qxa6 {[%emt 0:02:17]} d3 {[%emt 0:03:07]} 30. Nf3 {[%emt 0:07:46]} d2 {[%emt 0:03:51]} 31. e5 {[%emt 0:05:14]} Qe4 {[%emt 0:01:35]} 32. Rab1 {[%emt 0:02:58]} Rd3 {[%emt 0:13:50]} 33. Qb7 {[%emt 0:00:08]} Qe2 {[%emt 0:00:06]} 34. Qc6 {[%emt 0:04:32]} Rf8 {[%emt 0:05:27]} 35. Qf6 {[%emt 0:02:18]} Qe4 {[%emt 0:00:25]} 36. h4 {[%emt 0:16:28]} Rc3 {[%emt 0:10:27]} 37. Rb2 {[%emt 0:11:11]} Rc2 {[%emt 0:01:14]} 38. Qb6 {[%emt 0:00:02]} Rxb2 {[%emt 0:00:38]} 39. Qxb2 {[%emt 0:00:01]} Rd8 {[%emt 0:00:05]} 40. Qb6 {[%emt 0:01:09]} Rc8 {[%emt 0:02:48]} 41. h5 {[%emt 0:02:24]} Qc2 {[%emt 0:01:43]} 42. e6 {[%emt 0:00:32]} Qxd1 {[%emt 0:00:35]} 43. exf7+ {[%emt 0:00:05]} Kh8 {[%emt 0:00:02]} 44. Qd4+ {[%emt 0:02:13]} Bg7 {[%emt 0:00:06]} 45. Qd7 {[%emt 0:00:02]} Qc1 {[%emt 0:01:21]} 46. hxg6 {[%emt 0:03:46]} d1=Q {[%emt 0:00:14]} 47. Qe8+ {[%emt 0:00:04]} Bf8 {[%emt 0:00:02]} 48. Qe5+ {[%emt 0:00:05]} Bg7 {[%emt 0:00:02]} 49. Qe8+ {[%emt 0:00:05]} 1/2-1/2